lending/lending_fUSD_20250425
["ID","MTS","AMOUNT","RATE_DAILY","PERIOD"]
[358917204,1745545161691,-535.33299573,0.00049315,30]
[358917205,1745545161735,-10465.01523888,0.00049589,31]
[358917206,1745545161778,-500.0,0.00049589,30]
[358917207,1745545161817,-500.0,0.00049589,30]
[358917208,1745545161853,-500.0,0.00049589,30]
[358917209,1745545161891,-500.0,0.00049589,30]
[358917210,1745545161926,-405.1996009,0.00049589,30]
[358917211,1745545161961,-568.10583732,0.00049589,30]
[358917212,1745545161997,-300.0,0.00049589,30]
[358917213,1745545162031,-500.0,0.00049589,30]
[358917214,1745545162066,-607.09,0.00049589,30]
[358917215,1745545162101,-1527.68,0.00049589,30]
[358917216,1745545162134,-510.43092909,0.00049589,30]
[358917217,1745545162170,-500.0,0.00049589,30]
[358917218,1745545162207,-500.0,0.00049589,30]
[358917219,1745545162242,-1591.81,0.00049589,30]
[358917220,1745545162276,-500.0,0.00049589,30]
[358917221,1745545162311,-575.38,0.00049589,30]
[358917222,1745545162350,-500.0,0.00049589,30]
[358917223,1745545162384,-500.0,0.00049589,30]
[358917224,1745545162418,-536.9174586,0.00049589,30]
[358917225,1745545162452,-500.0,0.00049589,30]
[358917226,1745545162487,-500.0,0.00049589,30]
[358917227,1745545162520,-500.0,0.00049589,30]
[358917228,1745545162555,-500.0,0.00049589,30]
[358917229,1745545162590,-500.0,0.00049589,30]
[358917230,1745545162624,-500.0,0.00049589,30]
[358917231,1745545162659,-500.0,0.00049589,30]
[358917232,1745545162692,-585.95866082,0.00049589,30]
[358917233,1745545162728,-1012.07,0.00049589,30]
[358917234,1745545162763,-500.0,0.00049589,30]
[358917235,1745545162797,-500.0,0.00049589,30]
[358917236,1745545162831,-1098.37,0.00049589,30]
[358917237,1745545162867,-541.28,0.00049589,30]
[358917238,1745545162900,-1031.74,0.00049589,30]
[358917239,1745545162935,-1116.42,0.00049589,30]
[358917240,1745545162968,-500.0,0.00049589,30]
[358917241,1745545163001,-237.61724063,0.00049589,30]
[358917242,1745545163035,-546.69,0.00049589,30]
[358917243,1745545163069,-500.0,0.00049589,30]
[358917244,1745545163102,-500.0,0.00049589,30]
[358917245,1745545163136,-500.0,0.00049589,30]
[358917246,1745545163172,-500.0,0.00049589,30]
[358917247,1745545163208,-500.0,0.00049589,30]
[358917248,1745545163243,-511.12461942,0.00049589,30]
[358917249,1745545163277,-500.0,0.00049589,30]
[358917250,1745545163313,-516.07147534,0.00049589,30]
[358917251,1745545163348,-500.0,0.00049589,30]
[358917252,1745545163383,-500.0,0.00049589,30]
[358917253,1745545163419,-500.0,0.00049589,30]
[358917254,1745545163458,-1901.47,0.00049589,30]
[358917255,1745545163496,-500.0,0.00049589,30]
[358917256,1745545163536,-500.0,0.00049589,30]
[358917257,1745545163575,-500.0,0.00049589,30]
[358917258,1745545163616,-500.0,0.00049589,30]
[358917259,1745545163658,-500.0,0.00049589,30]
[358917260,1745545163700,-500.0,0.00049589,30]
[358917261,1745545163741,-499.0,0.00049589,60]
[358917262,1745545163782,-499.0,0.00049589,60]
[358917263,1745545163821,-499.0,0.00049589,60]
[358917264,1745545163860,-499.0,0.00049589,60]
[358917265,1745545163899,-499.0,0.00049589,60]
[358917266,1745545163938,-499.0,0.00049589,60]
[358917267,1745545163974,-499.0,0.00049589,60]
[358917268,1745545164009,-499.0,0.00049589,60]
[358917269,1745545164044,-499.0,0.00049589,60]
[358917270,1745545164080,-499.0,0.00049589,60]
[358917271,1745545164116,-499.0,0.00049589,60]
[358917272,1745545164154,-499.0,0.00049589,60]
[358917273,1745545164192,-499.0,0.00049589,60]
[358917274,1745545164230,-499.0,0.00049589,60]
[358917275,1745545164265,-268.0,0.00049589,60]
[358917276,1745545164533,-268.0,0.00049589,60]
[358917277,1745545164577,-268.0,0.00049589,60]
[358917278,1745545164617,-268.0,0.00049589,60]
[358917279,1745545164657,-268.0,0.00049589,60]
[358917280,1745545164696,-268.0,0.00049589,60]
[358917281,1745545164738,-268.0,0.00049589,60]
[358917282,1745545164777,-268.0,0.00049589,60]
[358917283,1745545164815,-268.0,0.00049589,60]
[358917284,1745545164852,-268.0,0.00049589,60]
[358917285,1745545164891,-268.0,0.00049589,60]
[358917286,1745545164928,-268.0,0.00049589,60]
[358917287,1745545164967,-268.0,0.00049589,60]
[358917288,1745545165007,-268.0,0.00049589,60]
[358917289,1745545165046,-499.0,0.00049589,60]
[358917290,1745545165087,-499.0,0.00049589,60]
[358917291,1745545165126,-499.0,0.00049589,60]
[358917292,1745545165164,-499.0,0.00049589,60]
[358917293,1745545165206,-499.0,0.00049589,60]
[358917294,1745545165243,-499.0,0.00049589,60]
[358917295,1745545165279,-499.0,0.00049589,60]
[358917296,1745545165315,-499.0,0.00049589,60]
[358917297,1745545165350,-499.0,0.00049589,60]
[358917298,1745545165393,-499.0,0.00049589,60]
[358917299,1745545165430,-499.0,0.00049589,60]
[358917300,1745545165468,-499.0,0.00049589,60]
[358917301,1745545165507,-153.0,0.00049589,60]
[358917302,1745545165542,-153.0,0.00049589,60]
[358917303,1745545165578,-153.0,0.00049589,60]
[358917304,1745545165616,-500.0,0.00049863,30]
[358917305,1745545165652,-500.0,0.00049863,30]
[358917306,1745545165686,-500.0,0.00049863,30]
[358917307,1745545165721,-500.0,0.00049863,30]
[358917308,1745545165756,-300.0,0.00049863,30]
[358917309,1745545165791,-500.0,0.00049863,30]
[358917310,1745545165826,-607.09,0.00049863,30]
[358917311,1745545165862,-1527.68,0.00049863,30]
[358917312,1745545165895,-500.0,0.00049863,30]
[358917313,1745545165929,-500.0,0.00049863,30]
[358917314,1745545165962,-1591.81,0.00049863,30]
[358917315,1745545165997,-500.0,0.00049863,30]
[358917316,1745545166032,-575.38,0.00049863,30]
[358917317,1745545166067,-500.0,0.00049863,30]
[358917318,1745545166100,-500.0,0.00049863,30]
[358917319,1745545166134,-500.0,0.00049863,30]
[358917320,1745545166169,-500.0,0.00049863,30]
[358917321,1745545166204,-500.0,0.00049863,30]
[358917322,1745545166238,-500.0,0.00049863,30]
[358917323,1745545166273,-500.0,0.00049863,30]
[358917324,1745545166311,-500.0,0.00049863,30]
[358917325,1745545166347,-500.0,0.00049863,30]
[358917326,1745545166384,-1012.07,0.00049863,30]
[358917327,1745545166419,-500.0,0.00049863,30]
[358917328,1745545166455,-1098.37,0.00049863,30]
[358917329,1745545166490,-262.22766425,0.00049863,30]
[358917330,1745545166525,-541.28,0.00049863,30]
[358917331,1745545166562,-1031.74,0.00049863,30]
[358917332,1745545166599,-1116.42,0.00049863,30]
[358917333,1745545166634,-249.37929844,0.00049863,30]
[358917334,1745545166672,-546.69,0.00049863,30]
[358917335,1745545166709,-500.0,0.00049863,30]
[358917336,1745545166747,-500.0,0.00049863,30]
[358917337,1745545166785,-559.33585552,0.00049863,30]
[358917338,1745545166821,-500.0,0.00049863,30]
[358917339,1745545166858,-500.0,0.00049863,30]
[358917340,1745545166894,-500.0,0.00049863,30]
[358917341,1745545166929,-500.0,0.00049863,30]
[358917342,1745545166965,-500.0,0.00049863,30]
[358917343,1745545167000,-260.094496,0.00049863,120]
[358917344,1745545167036,-556.10628371,0.00049863,30]
[358917345,1745545167073,-1901.47,0.00049863,30]
[358917346,1745545167114,-500.0,0.00049863,30]
[358917347,1745545167152,-500.0,0.00049863,30]
[358917348,1745545167189,-500.0,0.00049863,30]
[358917349,1745545167224,-500.0,0.00049863,30]
[358917350,1745545167261,-500.0,0.00049863,30]
[358917351,1745545167294,-500.0,0.00049863,30]
[358917352,1745545167328,-151.48850642,0.000499,120]
[358917353,1745545167362,-151.48850641,0.000499,120]
[358917354,1745545167399,-151.48850641,0.000499,120]
[358917355,1745545167434,-151.48850641,0.000499,120]
[358917356,1745545167468,-151.48850641,0.000499,120]
[358917357,1745545167502,-151.48850641,0.000499,120]
[358917358,1745545167537,-151.48850641,0.000499,120]
[358917359,1745545167572,-151.48850641,0.000499,120]
[358917360,1745545167608,-553.98566313,0.00050136,30]
[358917361,1745545167642,-500.0,0.00050136,30]
[358917362,1745545167676,-500.0,0.00050136,30]
[358917363,1745545167711,-500.0,0.00050136,30]
[358917364,1745545167745,-500.0,0.00050136,30]
[358917365,1745545167780,-300.0,0.00050136,30]
[358917366,1745545167820,-500.0,0.00050136,30]
[358917367,1745545167854,-607.09,0.00050136,30]
[358917368,1745545167889,-1527.68,0.00050136,30]
[358917369,1745545167924,-500.0,0.00050136,30]
[358917370,1745545167960,-500.0,0.00050136,30]
[358917371,1745545167994,-1591.81,0.00050136,30]
[358917372,1745545168028,-535.60154908,0.00050136,30]
[358917373,1745545168064,-575.38,0.00050136,30]
[358917374,1745545168100,-500.0,0.00050136,30]
[358917375,1745545168139,-500.0,0.00050136,30]
[358917376,1745545168176,-500.0,0.00050136,30]
[358917377,1745545168213,-500.0,0.00050136,30]
[358917378,1745545168250,-327.61571797,0.00050136,30]
[358917379,1745545168285,-500.0,0.00050136,30]
[358917380,1745545168540,-444.04045586,0.00050136,30]
[358917381,1745545168580,-500.0,0.00050136,30]
[358917382,1745545168618,-500.0,0.00050136,30]
[358917383,1745545168655,-1012.07,0.00050136,30]
[358917384,1745545168692,-500.0,0.00050136,30]
[358917385,1745545168728,-1098.37,0.00050136,30]
[358917386,1745545168763,-541.28,0.00050136,30]
[358917387,1745545168798,-1031.74,0.00050136,30]
[358917388,1745545168832,-1116.42,0.00050136,30]
[358917389,1745545168867,-546.69,0.00050136,30]
[358917390,1745545168901,-500.0,0.00050136,30]
[358917391,1745545168934,-500.0,0.00050136,30]
[358917392,1745545168967,-500.0,0.00050136,30]
[358917393,1745545169000,-500.0,0.00050136,30]
[358917394,1745545169033,-500.0,0.00050136,30]
[358917395,1745545169066,-500.0,0.00050136,30]
[358917396,1745545169100,-500.0,0.00050136,30]
[358917397,1745545169135,-1901.47,0.00050136,30]
[358917398,1745545169171,-500.0,0.00050136,30]
[358917399,1745545169206,-500.0,0.00050136,30]
[358917400,1745545169241,-500.0,0.00050136,30]
[358917401,1745545169275,-500.0,0.00050136,30]
[358917402,1745545169307,-500.0,0.00050136,30]
[358917403,1745545169340,-616.02489668,0.00050136,30]
[358917404,1745545169376,-503511.65108386,0.0005025,120]
[358917405,1745545169409,-2110.0,0.00050315,30]
[358917406,1745545169443,-1132.194193,0.0005041,30]
[358917407,1745545169479,-9063.631094,0.0005041,30]
[358917408,1745545169515,-1167.008109,0.0005041,30]
[358917409,1745545169549,-521.06237226,0.0005041,30]
[358917410,1745545169585,-500.0,0.0005041,30]
[358917411,1745545169620,-635.40090748,0.0005041,30]
[358917412,1745545169658,-500.0,0.0005041,30]
[358917413,1745545169696,-500.0,0.0005041,30]
[358917414,1745545169732,-500.0,0.0005041,30]
[358917415,1745545169768,-500.0,0.0005041,30]
[358917416,1745545169805,-500.0,0.0005041,30]
[358917417,1745545169843,-1160.03,0.0005041,30]
[358917418,1745545169881,-500.0,0.0005041,30]
[358917419,1745545169918,-500.0,0.0005041,30]
[358917420,1745545169957,-500.0,0.0005041,30]
[358917421,1745545169994,-500.0,0.0005041,30]
[358917422,1745545170033,-868.05,0.0005041,30]
[358917423,1745545170073,-500.0,0.0005041,30]
[358917424,1745545170113,-702.4,0.0005041,30]
[358917425,1745545170153,-1226.82,0.0005041,30]
[358917426,1745545170191,-1538.93,0.0005041,30]
[358917427,1745545170229,-500.24,0.0005041,30]
[358917428,1745545170266,-500.0,0.0005041,30]
[358917429,1745545170301,-848.12,0.0005041,30]
[358917430,1745545170337,-500.0,0.0005041,30]
[358917431,1745545170373,-571.08669392,0.0005041,30]
[358917432,1745545170408,-500.0,0.0005041,30]
[358917433,1745545170443,-582.42,0.0005041,30]
[358917434,1745545170478,-581.75,0.0005041,30]
[358917435,1745545170512,-500.0,0.0005041,30]
[358917436,1745545170549,-500.0,0.0005041,30]
[358917437,1745545170587,-306.16886924,0.0005041,30]
[358917438,1745545170627,-500.0,0.0005041,30]
[358917439,1745545170664,-500.0,0.0005041,30]
[358917440,1745545170703,-500.0,0.0005041,30]
[358917441,1745545170743,-522.07,0.0005041,30]
[358917442,1745545170780,-523.01,0.0005041,30]
[358917443,1745545170815,-538.77,0.0005041,30]
[358917444,1745545170855,-644.39,0.0005041,30]
[358917445,1745545170891,-543.02,0.0005041,30]
[358917446,1745545170927,-500.0,0.0005041,30]
[358917447,1745545170963,-500.0,0.0005041,30]
[358917448,1745545170999,-500.0,0.0005041,30]
[358917449,1745545171035,-504.91,0.0005041,30]
[358917450,1745545171069,-649.75,0.0005041,30]
[358917451,1745545171104,-594.65821304,0.0005041,30]
[358917452,1745545171142,-500.0,0.0005041,30]
[358917453,1745545171179,-634.13,0.0005041,30]
[358917454,1745545171216,-500.0,0.0005041,30]
[358917455,1745545171254,-917.14,0.0005041,30]
[358917456,1745545171289,-244.67808219,0.0005041,30]
[358917457,1745545171325,-505.51,0.0005041,30]
[358917458,1745545171361,-606.78,0.0005041,30]
[358917459,1745545171397,-500.0,0.0005041,30]
[358917460,1745545171432,-500.0,0.0005041,30]
[358917461,1745545171469,-500.0,0.0005041,30]
[358917462,1745545171505,-500.0,0.0005041,30]
[358917463,1745545171541,-165.49125676,0.0005041,30]
[358917464,1745545171577,-595.29,0.0005041,30]
[358917465,1745545171613,-792.47,0.0005041,30]
[358917466,1745545171648,-500.0,0.0005041,30]
[358917467,1745545171684,-500.0,0.0005041,30]
[358917468,1745545171721,-334.43553343,0.0005041,30]
[358917469,1745545171761,-500.0,0.0005041,30]
[358917470,1745545171798,-754.49,0.0005041,30]
[358917471,1745545171835,-543.78,0.0005041,30]
[358917472,1745545171876,-500.0,0.0005041,30]
[358917473,1745545171913,-619.56,0.0005041,30]
[358917474,1745545171950,-540.28,0.0005041,30]
[358917475,1745545171985,-544.0,0.0005041,30]
[358917476,1745545172018,-189.93858318,0.0005041,30]
[358917477,1745545172052,-536.20091455,0.0005041,30]
[358917478,1745545172088,-500.0,0.0005041,30]
[358917479,1745545172123,-500.0,0.0005041,30]
[358917480,1745545172158,-500.0,0.0005041,30]
[358917481,1745545172194,-537.72,0.0005041,30]
[358917482,1745545172230,-500.0,0.0005041,30]
[358917483,1745545172263,-166.26071561,0.0005041,30]
[358917484,1745545172297,-500.0,0.0005041,30]
[358917485,1745545172562,-500.0,0.0005041,30]
[358917486,1745545172600,-686.33,0.0005041,30]
[358917487,1745545172636,-500.0,0.0005041,30]
[358917488,1745545172672,-569.6,0.0005041,30]
[358917489,1745545172706,-1556.23,0.0005041,30]
[358917490,1745545172742,-500.0,0.0005041,30]
[358917491,1745545172777,-500.0,0.0005041,30]
[358917492,1745545172815,-500.0,0.0005041,30]
[358917493,1745545172853,-500.0,0.0005041,30]
[358917494,1745545172888,-500.0,0.0005041,30]
[358917495,1745545172923,-500.0,0.0005041,30]
[358917496,1745545172958,-500.0,0.0005041,30]
[358917497,1745545172993,-1417.1,0.0005041,30]
[358917498,1745545173029,-500.0,0.0005041,30]
[358917499,1745545173064,-500.0,0.0005041,30]
[358917500,1745545173099,-153.20571975,0.0005041,30]
[358917501,1745545173133,-640.19,0.0005041,30]
[358917502,1745545173171,-500.0,0.0005041,30]
[358917503,1745545173208,-500.0,0.0005041,30]
[358917504,1745545173246,-500.0,0.0005041,30]
[358917505,1745545173283,-500.0,0.0005041,30]
[358917506,1745545173320,-1349.12,0.0005041,30]
[358917507,1745545173357,-1073.85,0.0005041,30]
[358917508,1745545173394,-500.0,0.0005041,30]
[358917509,1745545173430,-500.0,0.0005041,30]
[358917510,1745545173467,-500.0,0.0005041,30]
[358917511,1745545173507,-500.0,0.0005041,30]
[358917512,1745545173549,-542.53,0.0005041,30]
[358917513,1745545173591,-500.0,0.0005041,30]
[358917514,1745545173632,-1692.22,0.0005041,30]
[358917515,1745545173673,-500.0,0.0005041,30]
[358917516,1745545173714,-896.35,0.0005041,30]
[358917517,1745545173754,-500.0,0.0005041,30]
[358917518,1745545173793,-500.0,0.0005041,30]
[358917519,1745545173832,-500.0,0.0005041,30]
[358917520,1745545173873,-500.0,0.0005041,30]
[358917521,1745545173911,-500.0,0.0005041,30]
[358917522,1745545173950,-500.0,0.0005041,30]
[358917523,1745545173987,-500.0,0.0005041,30]
[358917524,1745545174022,-500.0,0.0005041,30]
[358917525,1745545174058,-500.0,0.0005041,30]
[358917526,1745545174095,-500.0,0.0005041,30]
[358917527,1745545174133,-994.55,0.0005041,30]
[358917528,1745545174170,-186.98437096,0.0005041,30]
[358917529,1745545174209,-500.0,0.0005041,30]
[358917530,1745545174249,-500.0,0.0005041,30]
[358917531,1745545174288,-500.0,0.0005041,30]
[358917532,1745545174326,-542.37,0.0005041,30]
[358917533,1745545174364,-500.0,0.0005041,30]
[358917534,1745545174400,-500.0,0.0005041,30]
[358917535,1745545174438,-500.0,0.0005041,30]
[358917536,1745545174477,-546.08,0.0005041,30]
[358917537,1745545174523,-500.0,0.0005041,30]
[358917538,1745545174561,-2439.89,0.0005041,30]
[358917539,1745545174599,-500.0,0.0005041,30]
[358917540,1745545174636,-500.0,0.0005041,30]
[358917541,1745545174673,-500.0,0.0005041,30]
[358917542,1745545174708,-500.0,0.0005041,30]
[358917543,1745545174743,-584.43,0.0005041,30]
[358917544,1745545174780,-500.0,0.0005041,30]
[358917545,1745545174817,-500.0,0.0005041,30]
[358917546,1745545174854,-939.8,0.0005041,30]
[358917547,1745545174891,-2036.8,0.0005041,30]
[358917548,1745545174928,-500.0,0.0005041,30]
[358917549,1745545174963,-500.0,0.0005041,30]
[358917550,1745545175000,-517.24,0.0005041,30]
[358917551,1745545175037,-500.0,0.0005041,30]
[358917552,1745545175073,-500.0,0.0005041,30]
[358917553,1745545175110,-566.72,0.0005041,30]
[358917554,1745545175149,-500.0,0.0005041,30]
[358917555,1745545175188,-500.0,0.0005041,30]
[358917556,1745545175224,-566.8162274,0.0005041,30]
[358917557,1745545175261,-500.0,0.0005041,30]
[358917558,1745545175300,-1510.65,0.0005041,30]
[358917559,1745545175340,-1008.08,0.0005041,30]
[358917560,1745545175376,-500.0,0.0005041,30]
[358917561,1745545175414,-1011.43,0.0005041,30]
[358917562,1745545175449,-500.0,0.0005041,30]
[358917563,1745545175485,-730.49,0.0005041,30]
[358917564,1745545175521,-500.0,0.0005041,30]
[358917565,1745545175556,-500.0,0.0005041,30]
[358917566,1745545175593,-528.27,0.0005041,30]
[358917567,1745545175632,-500.0,0.0005041,30]
[358917568,1745545175671,-769.43,0.0005041,30]
[358917569,1745545175708,-500.0,0.0005041,30]
[358917570,1745545175746,-694.5,0.0005041,30]
[358917571,1745545175784,-500.0,0.0005041,30]
[358917572,1745545175820,-500.0,0.0005041,30]
[358917573,1745545175857,-858.57,0.0005041,30]
[358917574,1745545175893,-500.0,0.0005041,30]
[358917575,1745545175928,-763.88,0.0005041,30]
[358917576,1745545175963,-727.33,0.0005041,30]
[358917577,1745545175997,-875.49,0.0005041,120]
[358917578,1745545176031,-500.0,0.0005041,30]
[358917579,1745545176065,-500.0,0.0005041,30]
[358917580,1745545176101,-500.0,0.0005041,30]
[358917581,1745545176137,-500.0,0.0005041,30]
[358917582,1745545176174,-500.0,0.0005041,30]
[358917583,1745545176211,-500.0,0.0005041,30]
[358917584,1745545176250,-616.04783462,0.0005041,30]
[358917585,1745545176286,-719.69,0.0005041,30]
[358917586,1745545176321,-742.58,0.0005041,30]
[358917587,1745545176357,-500.0,0.0005041,30]
[358917588,1745545176390,-695.81,0.0005041,30]
[358917589,1745545176650,-500.0,0.0005041,30]
[358917590,1745545176691,-500.0,0.0005041,30]
[358917591,1745545176729,-663.3,0.0005041,30]
[358917592,1745545176767,-500.0,0.0005041,30]
[358917593,1745545176808,-618.78,0.0005041,30]
[358917594,1745545176845,-500.0,0.0005041,30]
[358917595,1745545176886,-1442.41,0.0005041,30]
[358917596,1745545176925,-2108.6,0.0005041,30]
[358917597,1745545176964,-599.18,0.0005041,30]
[358917598,1745545177003,-3086.13,0.0005041,30]
[358917599,1745545177039,-500.0,0.0005041,30]
[358917600,1745545177077,-1593.79,0.0005041,30]
[358917601,1745545177117,-500.0,0.0005041,30]
[358917602,1745545177156,-795.15,0.0005041,30]
[358917603,1745545177197,-522.13,0.0005041,30]
[358917604,1745545177236,-500.0,0.0005041,30]
[358917605,1745545177275,-500.0,0.0005041,30]
[358917606,1745545177315,-500.0,0.0005041,30]
[358917607,1745545177355,-1268.35,0.0005041,30]
[358917608,1745545177392,-1107.8,0.0005041,30]
[358917609,1745545177430,-500.0,0.0005041,30]
[358917610,1745545177468,-879.02,0.0005041,30]
[358917611,1745545177508,-500.0,0.0005041,30]
[358917612,1745545177550,-509.52061412,0.0005041,30]
[358917613,1745545177591,-500.0,0.0005041,30]
[358917614,1745545177629,-500.0,0.0005041,30]
[358917615,1745545177666,-500.0,0.0005041,30]
[358917616,1745545177702,-858.84,0.0005041,30]
[358917617,1745545177739,-765.14,0.0005041,30]
[358917618,1745545177777,-500.0,0.0005041,30]
[358917619,1745545177814,-500.0,0.0005041,30]
[358917620,1745545177852,-1773.32,0.0005041,30]
[358917621,1745545177891,-1111.7,0.0005041,30]
[358917622,1745545177929,-1976.47,0.0005041,30]
[358917623,1745545177966,-500.0,0.0005041,30]
[358917624,1745545178005,-500.0,0.0005041,30]
[358917625,1745545178042,-509.56,0.0005041,30]
[358917626,1745545178079,-500.0,0.0005041,30]
[358917627,1745545178118,-500.0,0.0005041,30]
[358917628,1745545178156,-1140.87,0.0005041,30]
[358917629,1745545178196,-500.0,0.0005041,30]
[358917630,1745545178234,-871.81,0.0005041,30]
[358917631,1745545178270,-657.75,0.0005041,30]
[358917632,1745545178306,-500.0,0.0005041,30]
[358917633,1745545178343,-1613.27,0.0005041,30]
[358917634,1745545178380,-500.0,0.0005041,30]
[358917635,1745545178417,-415.51,0.0005041,30]
[358917636,1745545178454,-500.0,0.0005041,30]
[358917637,1745545178490,-500.0,0.0005041,30]
[358917638,1745545178527,-500.0,0.0005041,30]
[358917639,1745545178567,-942.33,0.0005041,30]
[358917640,1745545178605,-500.0,0.0005041,30]
[358917641,1745545178642,-1476.33,0.0005041,30]
[358917642,1745545178680,-500.0,0.0005041,30]
[358917643,1745545178719,-1855.1,0.0005041,30]
[358917644,1745545178759,-1456.2,0.0005041,30]
[358917645,1745545178797,-500.0,0.0005041,30]
[358917646,1745545178838,-500.0,0.0005041,30]
[358917647,1745545178880,-827.14,0.0005041,30]
[358917648,1745545178918,-500.0,0.0005041,30]
[358917649,1745545178958,-500.0,0.0005041,30]
[358917650,1745545178992,-500.0,0.0005041,30]
[358917651,1745545179029,-792.6,0.0005041,30]
[358917652,1745545179066,-500.0,0.0005041,30]
[358917653,1745545179101,-1103.01,0.0005041,30]
[358917654,1745545179139,-546.36,0.0005041,30]
[358917655,1745545179181,-500.0,0.0005041,30]
[358917656,1745545179221,-1012.63,0.0005041,30]
[358917657,1745545179259,-500.0,0.0005041,30]
[358917658,1745545179297,-500.0,0.0005041,30]
[358917659,1745545179337,-500.0,0.0005041,30]
[358917660,1745545179374,-500.0,0.0005041,30]
[358917661,1745545179410,-245.77457157,0.0005041,30]
[358917662,1745545179446,-500.0,0.0005041,30]
[358917663,1745545179482,-500.0,0.0005041,30]
[358917664,1745545179519,-500.0,0.0005041,30]
[358917665,1745545179554,-1616.8,0.0005041,30]
[358917666,1745545179590,-2124.79,0.0005041,30]
[358917667,1745545179624,-500.0,0.0005041,30]
[358917668,1745545179660,-620.23,0.0005041,30]
[358917669,1745545179696,-781.78,0.0005041,30]
[358917670,1745545179732,-802.61,0.0005041,30]
[358917671,1745545179768,-500.0,0.0005041,30]
[358917672,1745545179803,-500.0,0.0005041,30]
[358917673,1745545179837,-515.47,0.0005041,30]
[358917674,1745545179876,-990.31,0.0005041,30]
[358917675,1745545179913,-610.47,0.0005041,30]
[358917676,1745545179952,-2070.09,0.0005041,30]
[358917677,1745545179989,-1324.47,0.0005041,30]
[358917678,1745545180027,-500.0,0.0005041,30]
[358917679,1745545180062,-500.0,0.0005041,30]
[358917680,1745545180099,-500.0,0.0005041,30]
[358917681,1745545180135,-500.0,0.0005041,30]
[358917682,1745545180170,-350.0,0.0005041,30]
[358917683,1745545180204,-500.0,0.0005041,30]
[358917684,1745545180238,-500.0,0.0005041,30]
[358917685,1745545180271,-1042.75,0.0005041,30]
[358917686,1745545180305,-755.73,0.0005041,30]
[358917687,1745545180338,-1232.59,0.0005041,30]
[358917688,1745545180371,-500.0,0.0005041,30]
[358917689,1745545180406,-500.0,0.0005041,30]
[358917690,1745545180442,-767.48,0.0005041,30]
[358917691,1745545180478,-500.0,0.0005041,30]
[358917692,1745545180511,-500.0,0.0005041,30]
[358917693,1745545180737,-500.0,0.0005041,30]
[358917694,1745545180776,-2907.59,0.0005041,30]
[358917695,1745545180814,-895.82,0.0005041,30]
[358917696,1745545180852,-2590.97,0.0005041,30]
[358917697,1745545180886,-500.0,0.0005041,30]
[358917698,1745545180920,-1122.52,0.0005041,30]
[358917699,1745545180953,-500.0,0.0005041,30]
[358917700,1745545180986,-543.24,0.0005041,30]
[358917701,1745545181019,-500.0,0.0005041,30]
[358917702,1745545181053,-500.84,0.0005041,30]
[358917703,1745545181086,-500.0,0.0005041,30]